bitfinex-derivatives/quotes_ETHF0:USTF0_20240913
["timestamp","ask_amount","ask_price","bid_price","bid_amount"]
[1726218780251,9.17649583,2348.5,2348.4,1.9558]
[1726218780551,5.02853565,2348.5,2348.4,1.9558]
[1726218780847,4.55090774,2348.6,2348.5,0.42578]
[1726218782045,4.12514774,2348.6,2348.5,0.42578]
[1726218782944,4.55090774,2348.6,2348.5,0.42578]
[1726218785147,0.42578,2348.5,2348.4,1.53]
[1726218785352,7.89198,2348.5,2348.4,0.42578]
[1726218785653,11.24462774,2348.5,2348.4,0.42578]
[1726218786148,12.343479,2348.5,2348.4,0.42578]
[1726218786451,12.34347412,2348.5,2348.4,0.42578]
[1726218786755,11.24462774,2348.5,2348.4,0.42578]
[1726218787553,1.4903,2348.4,2348.3,1.95581]
[1726218787855,5.22434774,2348.4,2348.3,1.95581]
[1726218788148,5.25860716,2348.4,2348.3,1.95581]
[1726218788340,4.15984774,2348.4,2348.3,1.95581]
[1726218788541,8.41824774,2348.4,2348.3,1.95581]
[1726218788747,5.0656,2348.4,2348.3,1.95581]
[1726218788948,8.97702236,2348.4,2348.3,1.95581]
[1726218789552,5.0656,2348.4,2348.3,1.95581]
[1726218789753,10.04152236,2348.4,2348.3,1.53]
[1726218789953,10.04152236,2348.4,2348.3,1.95581]
[1726218790557,6.1301,2348.4,2348.3,1.95581]
[1726218790753,6.1301,2348.4,2348.3,1.53]
[1726218791052,10.04152236,2348.4,2348.3,1.53]
[1726218791258,10.04152236,2348.4,2348.3,1.95581]
[1726218791962,10.04152236,2348.4,2348.3,1.53]
[1726218793045,8.97702236,2348.4,2348.1,0.42584]
[1726218793350,0.42584,2348.2,2348.1,0.42584]
[1726218793557,0.42584,2348.2,2348.1,1.95584]
[1726218793855,1.23753,2348.3,2348.2,0.42583]
[1726218794451,5.49593,2348.3,2348.2,0.42583]
[1726218795057,0.42583,2348.2,2348.1,1.95584]
[1726218797356,4.68423,2348.2,2348.1,1.53]
[1726218799364,4.68423,2348.2,2348.1,1.95585]
[1726218799558,8.59095238,2348.2,2348.1,1.95585]
[1726218803262,4.33255238,2348.2,2348.1,1.95585]
[1726218803650,3.21468713,2348.2,2348.1,1.95585]
[1726218805157,7.47308713,2348.2,2348.1,1.95585]
[1726218807060,3.21468713,2348.2,2348.1,1.95585]
[1726218807261,7.47308713,2348.2,2348.1,1.95585]
[1726218807959,3.21468713,2348.2,2348.1,1.95585]
[1726218813773,0.42583,2348.2,2348.1,1.95585]
[1726218813966,3.62578713,2348.3,2348.2,0.42583]
[1726218814368,3.62578713,2348.3,2348.2,0.81953]
[1726218815977,0.83693,2348.3,2348.2,0.81953]
[1726218816577,0.83691,2348.3,2348.2,0.81953]
[1726218816869,2.78885713,2348.3,2348.2,1.88412]
[1726218817066,2.78885713,2348.4,2348.3,0.42581]
[1726218817267,2.78885713,2348.4,2348.3,2.32961]
[1726218818575,3.21465713,2348.4,2348.3,2.32961]
[1726218819473,2.78885713,2348.4,2348.3,2.32961]
[1726218819972,3.21465713,2348.4,2348.3,2.32961]
[1726218826084,2.78885713,2348.4,2348.3,2.32961]
[1726218826285,3.21465713,2348.4,2348.3,2.32961]
[1726218828878,0.4258,2348.4,2348.3,2.32961]
[1726218833490,0.42579,2348.5,2348.4,0.42578]
[1726218835288,4.14359856,2348.6,2348.5,0.42578]
[1726218835588,4.14359856,2348.6,2348.5,1.95578]
[1726218838377,6.55442856,2348.7,2348.5,1.95578]
[1726218838676,6.55442856,2348.7,2348.6,1.49017]
[1726218838677,3.2078,2348.7,2348.6,1.49017]
[1726218838881,5.99781957,2348.7,2348.6,1.49017]
[1726218839400,5.99781957,2348.7,2348.6,3.02017]
[1726218841791,3.2078,2348.7,2348.6,3.02017]
[1726218841986,3.21574957,2348.8,2348.7,0.42574]
[1726218842784,2.79001957,2348.8,2348.7,0.42574]
[1726218844292,1.58241,2348.9,2348.8,0.42572]
[1726218844696,4.37038069,2348.9,2348.8,1.95572]
[1726218844893,4.37035511,2348.9,2348.8,1.95572]
[1726218845088,1.58241,2348.9,2348.8,1.95572]
[1726218845287,3.94431574,2348.9,2348.8,1.95572]
[1726218845892,3.94431574,2348.9,2348.8,3.41164]
[1726218846695,0.3816,2348.9,2348.8,8.73356]
[1726218846886,0.3816,2348.9,2348.8,7.66924]
[1726218846887,2.61152965,2348.9,2348.8,7.66924]
[1726218847087,2.61152965,2348.9,2348.8,3.41164]
[1726218848187,2.61152965,2348.9,2348.8,1.95572]
[1726218848392,0.8073,2348.9,2348.8,0.42572]
[1726218848597,3.03654495,2348.9,2348.8,0.42572]
[1726218848988,3.59491574,2348.9,2348.8,0.42572]
[1726218849197,0.3816,2348.9,2348.8,0.42572]
[1726218849490,3.59491574,2348.9,2348.8,0.42572]
[1726218849795,0.3816,2348.9,2348.8,0.42572]
[1726218851195,0.3816,2348.9,2348.8,1.95572]
[1726218855299,0.8073,2348.9,2348.8,1.95572]
[1726218855691,0.3816,2348.9,2348.8,1.95572]
[1726218855893,2.60996958,2348.9,2348.8,1.95572]
[1726218858896,3.03566958,2348.9,2348.8,1.95572]
[1726218859398,2.60996958,2348.9,2348.8,1.95572]
[1726218859604,3.03566958,2348.9,2348.8,1.95572]
[1726218863002,3.59491574,2348.9,2348.8,1.95572]
[1726218866805,3.59491574,2348.9,2348.8,2.36592]
[1726218871005,0.8073,2348.9,2348.8,2.36592]
[1726218872409,0.8073,2348.9,2348.8,0.42572]
[1726218872803,3.59491574,2348.9,2348.8,0.42572]
[1726218873809,0.8073,2348.9,2348.8,0.42572]
[1726218874213,3.59491574,2348.9,2348.8,0.42572]
[1726218877609,0.42572,2348.8,2348.7,1.95574]
[1726218877812,1.19932,2348.8,2348.7,1.95574]
[1726218878198,3.98693574,2348.8,2348.7,1.95574]
[1726218878414,1.19932,2348.8,2348.7,1.95574]
[1726218878612,3.98693574,2348.8,2348.7,1.95574]
[1726218882112,1.19932,2348.8,2348.7,1.95574]
[1726218886215,4.54758833,2348.8,2348.7,1.95574]
[1726218893227,1.19932,2348.8,2348.7,1.95574]
[1726218894625,1.19932,2348.8,2348.7,2.36114]
[1726218895622,0.81292,2348.8,2348.7,2.36114]
[1726218897816,0.42572,2348.8,2348.7,2.36114]
[1726218899521,4.15558833,2348.9,2348.8,0.42572]
[1726218899720,0.80732,2348.9,2348.8,0.42572]
[1726218900019,8.02319833,2349.0,2348.9,0.4257]
[1726218900020,6.98176833,2349.0,2348.9,0.4257]
[1726218901424,8.04598833,2349.0,2348.9,0.4257]
[1726218901624,0.4257,2348.9,2348.8,2.33081]
[1726218901823,4.14866399,2348.9,2348.8,2.33081]
[1726218904233,3.72296399,2348.9,2348.8,2.33081]
[1726218904531,7.35696399,2349.0,2348.9,0.4257]
[1726218906034,6.98536399,2349.0,2348.9,0.4257]
[1726218906534,7.38616399,2349.0,2348.9,0.4257]
[1726218909133,4.17836399,2349.0,2348.9,0.4257]
[1726218912232,5.24258399,2349.0,2348.9,0.4257]
[1726218912436,4.17836399,2349.0,2348.9,0.4257]
[1726218913929,0.8265,2349.0,2348.9,0.4257]
[1726218914431,4.17836399,2349.0,2348.9,0.4257]
[1726218915625,0.8265,2349.0,2348.9,0.4257]
[1726218916040,4.17836399,2349.0,2348.9,0.4257]
[1726218917032,0.8265,2349.0,2348.9,0.4257]
[1726218917242,4.17836399,2349.0,2348.9,0.4257]
[1726218921339,0.8265,2349.0,2348.9,0.4257]
[1726218921738,0.4008,2349.0,2348.9,0.4257]
[1726218921941,7.76244399,2349.1,2348.9,0.4257]
[1726218921942,7.76244399,2349.1,2349.0,0.42569]
[1726218922139,7.76244399,2349.1,2349.0,2.36059]
[1726218922339,7.76244399,2349.1,2349.0,2.73569]
[1726218922640,3.5916,2349.1,2349.0,2.73569]
[1726218923443,6.94346399,2349.1,2349.0,2.73569]
[1726218923743,7.36913399,2349.1,2349.0,2.73569]
[1726218923933,7.36913399,2349.1,2348.6,1.11705701]
[1726218923934,1.06422,2349.0,2348.6,1.11705701]
[1726218924134,1.06422,2349.0,2348.2,5.31505701]
[1726218924135,0.4258,2348.4,2348.2,5.31505701]
[1726218924437,4.7378,2348.7,2348.2,0.42583]
[1726218924438,3.9919,2348.3,2348.2,0.42583]
[1726218924640,3.9919,2348.3,2348.2,1.53]
[1726218924946,3.9919,2348.3,2348.2,1.95583]
[1726218925246,4.3644,2348.3,2348.2,1.95583]
[1726218925833,0.7583,2348.3,2348.2,1.95583]
[1726218926039,2.79113265,2348.3,2348.2,1.53]
[1726218926243,2.79113265,2348.3,2348.2,1.95583]
[1726218926431,0.7493,2348.5,2348.3,0.42581]
[1726218926432,2.79113265,2348.4,2348.3,0.42581]
[1726218928441,2.79113265,2348.5,2348.4,0.4258]
[1726218928749,2.79113265,2348.5,2348.4,6.5994]
[1726218929137,5.99893265,2348.6,2348.4,6.5994]
[1726218929442,3.90564914,2350.1,2348.9,0.7]
[1726218929641,1.06355,2350.5,2349.7,3.2078]
[1726218929838,0.3967,2350.3,2350.2,0.42547]
[1726218930036,0.3967,2350.3,2350.2,1.95547]
[1726218930443,0.3758,2350.7,2350.3,0.42544]
[1726218930745,0.7725,2350.7,2350.3,3.63324]
[1726218931142,1.19788,2350.7,2350.3,3.63324]
[1726218931341,0.7725,2350.7,2350.4,1.95542]
[1726218931845,0.7725,2350.7,2350.5,0.42541]
[1726218932144,0.7725,2350.7,2350.4,0.42542]
[1726218933143,0.4254,2350.6,2350.3,3.63325]
[1726218933441,1.19789,2350.7,2350.3,3.63325]
[1726218934143,0.7725,2350.7,2350.4,0.42543]
[1726218934541,0.7725,2350.7,2350.3,6.5278]
[1726218934746,0.7725,2350.7,2350.5,0.42541]
[1726218935245,0.7725,2350.7,2350.4,0.42542]
[1726218935848,0.7725,2350.7,2350.5,0.4254]
[1726218936038,0.7725,2350.7,2350.6,0.4254]
[1726218936340,3.3068,2351.0,2350.5,3.32]
[1726218936537,3.2078,2351.0,2350.7,0.42536]
[1726218936749,3.2078,2351.0,2350.9,0.42534]
[1726218936947,3.2078,2351.0,2350.7,3.32]
[1726218937250,3.2078,2351.0,2350.9,0.42534]
[1726218937438,3.2078,2351.0,2350.7,3.32]
[1726218937644,3.2078,2351.0,2350.9,0.42534]
[1726218938045,4.2536,2351.0,2350.9,0.42534]
[1726218938349,4.2536,2351.0,2350.9,3.63314]
[1726218938653,4.2536,2351.0,2350.9,3.2078]
[1726218939447,4.2536,2351.0,2350.9,3.63314]
[1726218939948,4.2536,2351.0,2350.9,3.2078]
[1726218940338,4.2536,2351.0,2350.9,3.63314]
[1726218940541,0.8023,2351.1,2351.0,0.42532]
[1726218940743,0.4022,2351.1,2351.0,0.42532]
[1726218940945,0.4945,2351.5,2351.3,0.42526]
[1726218941250,0.3955,2351.5,2351.4,6.5278]
[1726218941842,0.3955,2351.5,2351.4,6.95305]
[1726218942050,0.3955,2351.5,2351.4,6.5278]
[1726218943054,0.82073,2351.5,2351.4,3.2078]
[1726218943940,0.82073,2351.5,2351.3,0.42527]
[1726218944144,0.3955,2351.5,2351.3,0.42527]
[1726218944344,0.82074,2351.5,2351.2,3.74528]
[1726218944657,0.3955,2351.5,2351.2,3.32]
[1726218944838,0.3955,2351.5,2351.4,0.42525]
[1726218945039,0.3955,2351.5,2351.4,3.63305]
[1726218945237,0.3955,2351.5,2351.4,6.95305]
[1726218945744,0.099,2351.9,2351.7,0.42519]
[1726218945945,0.42516,2351.9,2351.7,3.74519]
[1726218946149,0.099,2352.2,2351.8,7.572]
[1726218946344,0.4251,2352.3,2352.1,3.32]
[1726218946740,3.63288,2352.4,2352.1,3.32]
[1726218947141,3.2078,2352.4,2352.1,3.74512]
[1726218947339,0.3899,2352.5,2352.4,0.42507]
[1726218947542,0.099,2352.7,2352.3,3.32]
[1726218947750,1.33469,2352.9,2352.0,1.06284]
[1726218947751,0.3899,2352.8,2352.6,3.32]
[1726218947945,0.3899,2352.8,2352.6,3.74502]
[1726218948147,3.3068,2353.3,2352.6,3.32]
[1726218948455,1.21965,2353.1,2352.8,6.5278]
[1726218948652,1.21965,2353.1,2352.8,6.95279]
[1726218948958,3.3068,2353.6,2352.9,4.2496]
[1726218949255,0.4451558,2353.8,2353.5,6.5278]
[1726218949256,0.115,2353.8,2353.5,6.5278]
[1726218949642,0.115,2353.8,2353.7,3.74484]
[1726218949843,3.2078,2354.7,2353.7,9.32]
[1726218950045,3.2078,2354.7,2354.0,3.32]
[1726218950253,3.2078,2354.7,2353.7,3.2078]
[1726218950254,3.32,2354.5,2353.7,3.2078]
[1726218950451,0.42478,2354.0,2353.7,3.2078]
[1726218950652,0.42481,2353.9,2353.7,3.2078]
[1726218950864,4.26967,2354.2,2353.4,3.2078]
[1726218951151,0.42485,2353.7,2353.4,3.2078]
[1726218951347,3.2078,2353.9,2353.1,6.5278]
[1726218951551,0.42487,2353.6,2353.1,6.95274]
[1726218952048,0.399,2353.5,2353.2,0.42493]
[1726218952247,0.399,2353.5,2353.1,6.95274]
[1726218952447,0.399,2353.5,2353.1,6.5278]
[1726218952654,0.399,2353.5,2353.2,0.42493]
[1726218953549,0.82389,2353.5,2353.1,6.95273]
[1726218953856,1.21939,2353.5,2353.1,6.95273]
[1726218954057,1.21939,2353.5,2353.1,3.2078]
[1726218954058,0.4249,2353.4,2353.1,3.2078]
[1726218954854,0.42491,2353.3,2353.1,3.2078]
[1726218955056,0.42491,2353.3,2352.9,3.74497]
[1726218955260,0.42491,2353.3,2353.0,0.42496]
[1726218955554,0.4249,2353.4,2353.0,0.42496]
[1726218955759,0.42491,2353.3,2353.0,0.42496]
[1726218956059,0.4249,2353.4,2353.1,3.2078]
[1726218956253,0.42491,2353.3,2353.1,3.2078]
[1726218956453,0.4249,2353.4,2353.1,3.2078]
[1726218957044,0.4249,2353.4,2353.1,3.63274]
[1726218957353,0.4249,2353.4,2353.1,3.2078]
[1726218957756,0.7945,2353.5,2353.1,3.2078]
[1726218957947,0.42491,2353.3,2353.1,3.2078]
[1726218958247,0.4249,2353.4,2353.1,3.2078]
[1726218959048,0.42491,2353.3,2353.1,3.2078]
[1726218960056,0.42491,2353.3,2353.1,3.63274]
[1726218960252,0.4249,2353.4,2353.1,3.63274]
[1726218960453,0.099,2353.8,2353.3,3.32]
[1726218960659,0.099,2353.8,2353.6,3.32]
[1726218960960,3.6326,2353.9,2353.6,0.42484]
[1726218961346,3.2078,2353.9,2353.7,0.42483]
[1726218961854,0.4098,2354.0,2353.4,3.32]
[1726218962059,0.214,2354.5,2353.2,0.7623]
[1726218962060,0.214,2354.5,2353.9,3.32]
[1726218962352,0.4247,2354.5,2354.2,3.74474]
[1726218962560,0.4247,2354.5,2354.2,6.95254]
[1726218962750,1.86222,2354.8,2354.3,0.42472]
[1726218962950,0.4247,2354.5,2354.2,6.95254]
[1726218963151,0.4098,2354.8,2354.2,6.5278]
[1726218963348,0.42465,2354.8,2354.5,3.63248]
[1726218963548,0.42466,2354.8,2354.5,3.63248]
[1726218963757,0.83163,2354.9,2354.7,0.42465]
[1726218964159,0.83163,2354.9,2354.5,3.2078]
[1726218964160,0.407,2354.9,2354.5,3.2078]
[1726218964364,0.42465,2354.8,2354.5,3.63248]
[1726218964662,0.407,2354.9,2354.5,3.2078]
[1726218964663,0.42466,2354.7,2354.5,3.2078]
[1726218964960,0.42466,2354.7,2354.5,3.63249]
[1726218965156,0.42465,2354.8,2354.5,3.63249]
[1726218965752,0.407,2354.9,2354.5,3.2078]
[1726218965952,0.83162,2354.9,2354.5,3.2078]
[1726218966164,0.83162,2354.9,2354.6,0.42466]
[1726218966165,0.42464,2354.8,2354.6,0.42466]
[1726218966347,0.42464,2354.8,2354.5,3.2078]
[1726218966553,3.63239,2355.1,2354.9,0.42461]
[1726218966755,3.2078,2355.1,2355.0,0.4246]
[1726218967465,0.3908,2355.4,2354.9,3.32]
[1726218967654,0.3908,2355.4,2355.1,3.2078]
[1726218967962,0.214,2356.2,2355.4,0.42453]
[1726218968153,6.7418,2356.2,2355.4,6.5278]
[1726218968456,0.42457,2355.2,2355.1,0.214]
[1726218968759,0.42454,2355.4,2355.1,0.214]
[1726218968957,0.42455,2355.3,2355.0,3.2078]
[1726218969162,0.4049,2355.5,2355.0,3.2078]
[1726218969367,0.4049,2355.5,2354.6,3.8]
[1726218969368,3.32,2355.4,2354.6,3.8]
[1726218969660,0.42457,2355.2,2354.7,0.42465]
[1726218970164,0.42459,2355.1,2354.6,7.33066]
[1726218970664,3.32,2355.4,2354.6,3.2078]
[1726218970665,0.42462,2354.9,2354.6,3.2078]
[1726218970970,0.42463,2354.9,2354.6,3.2078]
[1726218971167,0.42461,2355.0,2354.6,3.2078]
[1726218971361,0.42461,2355.0,2354.6,6.5278]
[1726218971971,0.403,2355.4,2354.9,3.2078]
[1726218972666,0.4049,2355.5,2355.2,6.5278]
[1726218972963,0.4245,2355.6,2355.2,6.5278]
[1726218973161,0.42449,2355.7,2355.3,0.42454]
[1726218973374,0.4049,2355.8,2355.5,3.2078]
[1726218973375,0.82937,2355.8,2355.5,3.2078]
[1726218974163,0.4049,2355.8,2355.5,3.63231]
[1726218974368,0.393,2356.0,2355.5,3.2078]
[1726218974669,0.81747,2356.0,2355.5,3.63234]
[1726218975056,0.81747,2356.0,2355.6,0.42454]
[1726218975261,0.81747,2356.0,2355.5,3.2078]
[1726218975262,0.42449,2355.9,2355.5,3.2078]
[1726218975969,0.42449,2355.9,2355.5,3.63235]
[1726218976269,0.81748,2356.0,2355.5,3.63235]
[1726218976473,0.42448,2355.9,2355.5,3.2078]
[1726218976658,0.81748,2356.0,2355.5,3.2078]
[1726218976863,7.5648,2355.9,2355.2,3.2078]
[1726218977066,0.42457,2355.5,2355.2,3.2078]
[1726218977365,1.06147,2355.4,2354.8,0.4095]
[1726218977567,3.32,2355.3,2354.7,0.3981]
[1726218977768,0.42467,2354.9,2354.5,3.74473]
[1726218977966,0.42466,2354.9,2354.5,3.74473]
[1726218978166,1.06153,2355.2,2354.5,3.74473]
[1726218978167,1.06153,2355.2,2354.5,0.42472]
[1726218978362,1.06153,2355.2,2354.2,4.0062]
[1726218978568,0.42466,2355.0,2354.6,3.2078]
[1726218978764,0.42466,2355.0,2354.5,0.42473]
[1726218978967,3.9793,2355.4,2354.7,0.42469]
[1726218979172,0.42463,2355.1,2354.6,0.42471]
[1726218979374,0.42463,2355.1,2354.6,3.63251]
[1726218980162,0.42465,2355.0,2354.6,3.2078]
[1726218980372,3.63244,2355.1,2354.6,0.42471]
[1726218980571,0.42465,2355.0,2354.5,0.42472]
[1726218980775,0.42465,2355.0,2354.6,3.2078]
[1726218980966,1.06152,2355.3,2354.3,3.2078]
[1726218981163,0.42466,2355.0,2354.5,0.42473]
[1726218981368,0.42466,2355.0,2354.6,3.2078]
[1726218981771,0.42466,2355.0,2354.5,0.42473]
[1726218982068,0.42465,2355.0,2354.5,0.42472]
[1726218983169,0.42466,2354.9,2354.6,3.2078]
[1726218983377,1.06152,2355.3,2354.6,3.2078]
[1726218983581,0.42465,2355.0,2354.6,3.63251]
[1726218983763,0.42463,2355.1,2354.7,0.42469]
[1726218984565,0.42463,2355.1,2354.6,3.2078]
[1726218984764,1.06152,2355.3,2354.6,0.4247]
[1726218984970,1.06152,2355.3,2354.7,0.42469]
[1726218984971,0.42464,2355.1,2354.7,0.42469]
[1726218985178,1.06152,2355.3,2354.7,0.42469]
[1726218985179,0.42465,2355.0,2354.7,0.42469]
[1726218985385,0.42465,2355.0,2354.6,0.4247]
[1726218985676,0.42467,2354.9,2354.3,3.2078]
[1726218985882,0.42467,2354.9,2354.5,0.42472]
[1726218986085,0.42467,2354.9,2354.6,0.42472]
[1726218986470,0.42468,2354.8,2354.5,0.42473]
[1726218986672,0.42473,2354.6,2354.2,0.83368]
[1726218986990,1.06182,2354.6,2354.0,3.2078]
[1726218987173,0.42485,2353.9,2353.7,4.198]
[1726218987374,1.06189,2354.4,2353.6,0.214]
[1726218987375,0.42484,2354.0,2353.6,0.214]
[1726218987682,0.42488,2353.8,2353.6,0.214]
[1726218987872,0.42489,2353.7,2353.4,0.42492]
[1726218988073,0.42489,2353.7,2353.3,0.83403]
[1726218988281,1.06218,2353.8,2353.3,3.2078]
[1726218988575,1.06218,2353.8,2353.1,0.42497]
[1726218988576,0.42492,2353.5,2353.1,0.42497]
[1726218988983,0.42491,2353.6,2353.2,0.42497]
[1726218989172,0.42491,2353.6,2353.0,3.2078]
[1726218989173,3.2078,2353.6,2353.0,3.2078]
[1726218989370,0.7837,2353.9,2353.6,0.4249]
[1726218989371,0.4068,2353.9,2353.6,0.4249]
[1726218989677,0.6028,2354.4,2353.8,0.42486]
[1726218989678,0.4248,2354.2,2353.8,0.42486]
[1726218989871,0.7889,2354.4,2353.6,3.2078]
[1726218989872,0.42478,2354.3,2353.7,0.381]
[1726218990073,0.4248,2354.2,2353.8,0.42486]
[1726218990583,0.42482,2354.1,2353.7,1.20677]
[1726218990773,1.85082,2354.4,2353.5,0.42491]
[1726218990774,0.42486,2353.9,2353.5,0.42491]
[1726218991091,0.42482,2354.1,2353.6,3.2078]
[1726218991272,0.42482,2354.1,2353.6,3.63268]
[1726218991578,0.42484,2354.0,2353.6,3.2078]
[1726218991880,0.42485,2353.9,2353.5,0.4249]
[1726218993484,3.63264,2354.0,2353.6,0.4249]
[1726218993784,0.42482,2354.1,2353.5,3.2078]
[1726218994079,0.42482,2354.1,2353.7,0.42487]
[1726218995172,4.26992,2353.9,2353.0,0.214]
[1726218995375,4.26992,2353.9,2352.9,1.06255]
[1726218995376,0.42491,2353.6,2353.3,0.42494]
[1726218995578,0.42491,2353.6,2353.2,0.42496]
[1726218995785,0.42485,2353.9,2353.5,3.2078]
[1726218996083,0.4248,2354.2,2353.7,3.2078]
[1726218996379,4.4131,2354.4,2353.7,3.2078]
[1726218996380,0.42478,2354.3,2353.7,3.2078]
[1726218996581,4.4131,2354.4,2354.1,0.4248]
[1726218996582,4.83786,2354.4,2354.1,0.4248]
[1726218997080,4.4131,2354.4,2354.1,0.4248]
[1726218997280,4.83785,2354.4,2354.1,0.4248]
[1726218997479,0.42478,2354.3,2354.0,0.42482]
[1726218997672,4.83787,2354.4,2354.1,0.42481]
[1726218998078,0.42477,2354.3,2354.0,0.42481]
[1726218998282,3.2078,2354.4,2353.8,1.06215]
[1726218998487,3.2078,2354.4,2354.2,0.42479]
[1726218998782,3.63256,2354.4,2354.1,0.4248]
[1726218999180,3.2078,2354.4,2354.3,0.42477]
[1726218999686,3.2078,2354.4,2354.3,4.67197]
[1726219000488,3.2078,2354.4,2354.3,4.2472]
[1726219000785,3.63255,2354.4,2354.1,0.42479]
[1726219001082,3.2078,2354.4,2354.0,0.42481]
[1726219001284,4.2697,2354.4,2353.6,3.4218]
[1726219001485,3.2078,2354.4,2354.0,0.42482]
[1726219001679,0.42478,2354.3,2354.0,0.42482]
[1726219003881,0.42481,2354.1,2353.8,0.42485]
[1726219004188,0.42483,2354.0,2353.7,0.42487]
[1726219004489,1.2037,2354.2,2353.9,0.42484]
[1726219004683,1.2037,2354.2,2353.9,0.42483]
[1726219004881,0.7789,2354.2,2354.0,0.42482]
[1726219005081,3.2078,2354.4,2354.3,0.42477]
[1726219005282,3.63242,2355.2,2354.9,0.42466]
[1726219005482,3.63242,2355.2,2354.5,1.06184]
[1726219005483,3.63242,2355.2,2354.6,3.6131]
[1726219005785,3.63242,2355.2,2354.8,0.42467]
[1726219005975,3.2078,2355.2,2354.8,0.42467]
[1726219006179,3.63242,2355.2,2354.9,0.42466]
[1726219006984,3.2078,2355.2,2354.9,0.42466]
[1726219007291,3.2078,2355.2,2354.9,0.42465]
[1726219007776,3.63241,2355.2,2354.9,0.42465]
[1726219008684,3.2078,2355.2,2354.9,0.42465]
[1726219009276,3.2078,2355.2,2354.6,4.67489]
[1726219009483,3.2078,2355.2,2354.9,0.42466]
[1726219010574,3.2078,2355.4,2355.0,4.2464]
[1726219010776,1.19291,2355.8,2355.4,0.42456]
[1726219010980,4.40071,2355.8,2355.4,0.42456]
[1726219011180,0.42453,2355.7,2355.3,0.42459]
[1726219011380,4.40071,2355.8,2355.4,0.42457]
[1726219011586,3.9762,2355.8,2355.1,1.46637]
[1726219011784,0.42453,2355.7,2355.3,0.42458]
[1726219012092,3.9762,2355.8,2355.5,0.42455]
[1726219012093,0.7684,2355.8,2355.5,0.42455]
[1726219012281,3.9762,2355.8,2355.3,3.2078]
[1726219012477,0.7684,2355.8,2355.3,3.2078]
[1726219012884,0.7684,2355.8,2355.5,0.42454]
[1726219013187,0.7684,2355.8,2355.4,0.42456]
[1726219013394,0.7684,2355.8,2355.5,0.42455]
[1726219015891,3.2078,2356.1,2355.9,0.42448]
[1726219016082,3.2078,2356.1,2355.3,8.34927]
[1726219016083,0.3791,2356.1,2355.7,3.63232]
[1726219016283,0.3791,2356.1,2355.8,0.4245]
[1726219016789,0.3791,2356.1,2355.7,3.2078]
[1726219016994,0.3791,2356.1,2355.8,0.4245]
[1726219017387,0.3791,2356.1,2355.8,0.42448]
[1726219017894,0.80355,2356.1,2355.6,3.2078]
[1726219018191,0.3791,2356.1,2355.6,0.42453]
[1726219018502,0.3791,2356.1,2355.3,4.08]
[1726219018685,0.3791,2356.1,2355.7,3.63231]
[1726219018890,0.3791,2356.1,2355.7,0.42451]
[1726219019294,0.80355,2356.1,2355.6,0.42452]
[1726219019591,0.80355,2356.1,2355.7,3.2078]
[1726219019890,0.3791,2356.1,2355.7,3.2078]
[1726219020092,0.80907,2356.0,2355.7,3.2078]
[1726219020595,0.3846,2356.0,2355.7,3.2078]
[1726219020894,0.3846,2356.0,2355.2,3.2078]
[1726219020895,0.4245,2355.8,2355.2,3.2078]
[1726219021195,0.3857,2355.7,2355.4,0.42457]
[1726219021386,0.3952,2355.6,2355.4,0.42457]
[1726219023697,0.3342622,2356.6,2355.6,1.06135]
[1726219023888,0.3796,2356.3,2355.8,3.2078]
[1726219024086,0.3796,2356.3,2355.9,0.42447]
[1726219024595,0.3796,2356.3,2355.8,3.2078]
[1726219024783,0.3796,2356.3,2355.9,0.42447]
[1726219025189,0.3796,2356.3,2355.8,4.26905]
[1726219025397,0.3796,2356.3,2356.1,0.42444]
[1726219025794,0.3796,2356.3,2355.8,3.2078]
[1726219025994,0.3796,2356.3,2356.0,0.42445]
[1726219026792,0.3796,2356.3,2355.8,3.2078]
[1726219026998,0.3796,2356.3,2355.7,0.42451]
[1726219026999,0.42444,2356.2,2355.7,0.42451]
[1726219027191,0.80402,2356.3,2355.8,0.42449]
[1726219027389,0.3796,2356.3,2355.9,0.42448]
[1726219027895,0.80401,2356.3,2355.9,0.42448]
[1726219028095,0.80401,2356.3,2355.4,5.14143]
[1726219028096,0.42443,2356.2,2355.5,3.63235]
[1726219028289,0.80402,2356.3,2355.8,3.2078]
[1726219028600,0.80402,2356.3,2355.9,0.42448]
[1726219028791,0.3796,2356.3,2356.0,0.42446]
[1726219029297,0.3796,2356.3,2355.9,0.42448]
[1726219029890,0.80402,2356.3,2355.8,3.63229]
[1726219030593,0.42444,2356.2,2355.8,3.2078]
[1726219030790,0.42445,2356.1,2355.8,3.2078]
[1726219030991,0.42444,2356.2,2355.8,3.2078]
[1726219031199,0.42444,2356.2,2355.8,3.6323]
[1726219031596,0.80402,2356.3,2355.8,3.2078]
[1726219031796,0.3796,2356.3,2355.8,3.2078]
[1726219032001,0.42448,2355.9,2355.5,3.2078]
[1726219032201,1.1931,2355.8,2355.4,0.42456]
[1726219032393,1.1931,2355.8,2355.2,3.2078]
[1726219032701,1.1931,2355.8,2355.4,0.42457]
[1726219033092,1.1931,2355.8,2355.5,0.42455]
[1726219033798,1.1931,2355.8,2355.4,0.42456]
[1726219034299,1.1931,2355.8,2355.5,0.42455]
[1726219034697,1.1931,2355.8,2355.4,0.42456]
[1726219035403,1.1931,2355.8,2355.2,4.26931]
[1726219035601,1.1931,2355.8,2355.6,0.42453]
[1726219036100,1.1931,2355.8,2355.6,0.42454]